[Event "*** Monthly 3|2 Blitz Masters"]
[Site "Chess.com"]
[Date "2014.11.25"]
[Round "7"]
[White "IMRosen"]
[Black "MoreChessJulia"]
[Result "1-0"]
[WhiteElo "1993"]
[BlackElo "1887"]
[TimeControl "180+2"]
[EndTime "12:28:30 PST"]
[Termination "IMRosen won by resignation"]

1. c4 {[%clk 0:03:00]} 1... e5 {[%clk 0:02:57.6]} 2. Nc3 {[%clk 0:03:01]} 2...
Nc6 {[%clk 0:02:57.7]} 3. Nf3 {[%clk 0:03:02.6]} 3... g6 {[%clk 0:02:57.9]} 4.
d4 {[%clk 0:03:02]} 4... exd4 {[%clk 0:02:56.8]} 5. Nd5 {[%clk 0:03:03.6]} 5...
Bg7 {[%clk 0:02:55.4]} 6. Bg5 {[%clk 0:03:05.1]} 6... Nf6 {[%clk 0:02:50.5]} 7.
Nxd4 {[%clk 0:02:58.9]} 7... h6 {[%clk 0:02:49.1]} 8. Nb5 {[%clk 0:02:32.5]}
8... hxg5 {[%clk 0:02:44.8]} 9. Nbxc7+ {[%clk 0:02:32.6]} 9... Kf8 {[%clk
0:02:44.7]} 10. Nxa8 {[%clk 0:02:32.5]} 10... Nxd5 {[%clk 0:02:44.4]} 11. cxd5
{[%clk 0:02:26.6]} 11... Nb4 {[%clk 0:02:31.4]} 12. Qd2 {[%clk 0:02:13.4]} 12...
Qe7 {[%clk 0:02:11.5]} 13. Rc1 {[%clk 0:02:06.1]} 13... Nc6 {[%clk 0:01:43.2]}
14. dxc6 {[%clk 0:02:02.2]} 14... dxc6 {[%clk 0:01:43.2]} 15. Rd1 {[%clk
0:01:57]} 15... Bf6 {[%clk 0:01:41.6]} 16. e3 {[%clk 0:01:52.3]} 16... Be6
{[%clk 0:01:38.8]} 17. Qd6 {[%clk 0:01:45.6]} 17... Qxd6 {[%clk 0:01:35.6]} 18.
Rxd6 {[%clk 0:01:47.5]} 18... Ke7 {[%clk 0:01:35.6]} 19. Rd2 {[%clk 0:01:41.1]}
19... Rxa8 {[%clk 0:01:34.8]} 20. a3 {[%clk 0:01:37.5]} 20... g4 {[%clk
0:01:34.6]} 21. Be2 {[%clk 0:01:36.6]} 21... Be5 {[%clk 0:01:33.5]} 22. f4
{[%clk 0:01:22]} 22... Bc7 {[%clk 0:01:23.7]} 23. Kf2 {[%clk 0:01:13.1]} 23...
Rh8 {[%clk 0:01:21.3]} 24. b4 {[%clk 0:00:48.1]} 24... Bb6 {[%clk 0:01:18.4]}
25. a4 {[%clk 0:00:42.2]} 25... a6 {[%clk 0:01:16.1]} 26. Rb2 {[%clk 0:00:40]}
26... f5 {[%clk 0:01:05.8]} 27. b5 {[%clk 0:00:40.1]} 27... axb5 {[%clk
0:00:54.2]} 28. axb5 {[%clk 0:00:42]} 28... Bc5 {[%clk 0:00:51.1]} 29. bxc6
{[%clk 0:00:36.4]} 29... bxc6 {[%clk 0:00:51.1]} 30. Rc2 {[%clk 0:00:31.9]}
30... g3+ {[%clk 0:00:37.3]} 31. Kxg3 {[%clk 0:00:27.8]} 31... Bxe3 {[%clk
0:00:37.2]} 32. Rxc6 {[%clk 0:00:23.9]} 32... g5 {[%clk 0:00:37.3]} 33. Rxe6+
{[%clk 0:00:08.5]} 33... Kxe6 {[%clk 0:00:35.9]} 34. fxg5 {[%clk 0:00:09.9]}
34... Bxg5 {[%clk 0:00:27.7]} 35. h4 {[%clk 0:00:06.5]} 35... Be3 {[%clk
0:00:25.2]} 36. h5 {[%clk 0:00:06.4]} 36... Kf6 {[%clk 0:00:25]} 37. Kf3 {[%clk
0:00:05]} 37... Bg5 {[%clk 0:00:22.4]} 38. Bc4 {[%clk 0:00:06.2]} 38... Bh6
{[%clk 0:00:19]} 39. g3 {[%clk 0:00:06.1]} 39... Rc8 {[%clk 0:00:18.5]} 40. Bd3
{[%clk 0:00:06.5]} 40... Rc3 {[%clk 0:00:18.9]} 41. Ke2 {[%clk 0:00:07.9]} 41...
Ra3 {[%clk 0:00:18.6]} 42. Rf1 {[%clk 0:00:08.9]} 42... Ra2+ {[%clk 0:00:18.8]}
43. Kf3 {[%clk 0:00:09.3]} 43... Ra5 {[%clk 0:00:18.5]} 44. Kg2 {[%clk
0:00:07.3]} 44... Ra2+ {[%clk 0:00:18.4]} 45. Kh3 {[%clk 0:00:07]} 45... f4
{[%clk 0:00:18.2]} 46. gxf4 {[%clk 0:00:06.3]} 46... Ra3 {[%clk 0:00:19.2]} 47.
Rf3 {[%clk 0:00:06.6]} 47... Rb3 {[%clk 0:00:19.4]} 48. Kg4 {[%clk 0:00:07.8]}
48... Rb5 {[%clk 0:00:19.5]} 49. Bg6 {[%clk 0:00:08.7]} 49... Rb4 {[%clk
0:00:19.8]} 50. Kg3 {[%clk 0:00:09.4]} 50... Bg7 {[%clk 0:00:19.3]} 51. f5
{[%clk 0:00:09.7]} 51... Bh6 {[%clk 0:00:19.7]} 52. Rd3 {[%clk 0:00:10.8]} 52...
Bf4+ {[%clk 0:00:18]} 53. Kf3 {[%clk 0:00:11.4]} 53... Kg5 {[%clk 0:00:18.1]}
54. Rd1 {[%clk 0:00:10.5]} 54... Kh6 {[%clk 0:00:17.6]} 55. Rg1 {[%clk
0:00:10.5]} 55... Be5 {[%clk 0:00:17.5]} 56. Re1 {[%clk 0:00:11.6]} 56... Bf6
{[%clk 0:00:17.8]} 57. Rf1 {[%clk 0:00:12.9]} 57... Bg5 {[%clk 0:00:18]} 58. Rd1
{[%clk 0:00:14.5]} 58... Rf4+ {[%clk 0:00:18.2]} 59. Kg3 {[%clk 0:00:15.3]}
59... Rb4 {[%clk 0:00:18.1]} 60. Rd7 {[%clk 0:00:16.5]} 60... Bf6 {[%clk
0:00:16.7]} 61. Kf3 {[%clk 0:00:17.3]} 61... Kg5 {[%clk 0:00:17.3]} 62. Rf7
{[%clk 0:00:18.3]} 62... Rb3+ {[%clk 0:00:17.1]} 63. Ke4 {[%clk 0:00:18.7]}
63... Rh3 {[%clk 0:00:17]} 64. Kd5 {[%clk 0:00:19.1]} 64... Rd3+ {[%clk
0:00:17]} 65. Ke6 {[%clk 0:00:20]} 65... Re3+ {[%clk 0:00:17.3]} 66. Kd5 {[%clk
0:00:21.6]} 66... Rd3+ {[%clk 0:00:17.7]} 67. Ke4 {[%clk 0:00:22.7]} 67... Rh3
{[%clk 0:00:17.7]} 68. Rf8 {[%clk 0:00:23.4]} 68... Rh2 {[%clk 0:00:17.1]} 69.
Rg8 {[%clk 0:00:24]} 69... Rh4+ {[%clk 0:00:15.5]} 70. Kf3 {[%clk 0:00:24.3]}
70... Rd4 {[%clk 0:00:14]} 71. Rf8 {[%clk 0:00:21.5]} 71... Rh4 {[%clk
0:00:13.6]} 72. Rf7 {[%clk 0:00:21.6]} 72... Rd4 {[%clk 0:00:13.5]} 73. h6
{[%clk 0:00:19.3]} 73... Rd8 {[%clk 0:00:10.1]} 74. h7 {[%clk 0:00:20]} 74...
Ba1 {[%clk 0:00:08.6]} 75. Ra7 {[%clk 0:00:17.7]} 75... Kh6 {[%clk 0:00:07.9]}
76. Rxa1 {[%clk 0:00:16.8]} 1-0

[Event "*** Monthly 3|2 Blitz Masters"]
[Site "Chess.com"]
[Date "2014.11.25"]
[Round "7"]
[White "wonderfultime"]
[Black "Quinten94"]
[Result "1/2-1/2"]
[WhiteElo "2487"]
[BlackElo "2175"]
[TimeControl "180+2"]
[EndTime "12:29:07 PST"]
[Termination "Game drawn by agreement"]

1. d4 {[%clk 0:03:00]} 1... Nf6 {[%clk 0:02:59]} 2. c4 {[%clk 0:02:58.9]} 2...
e6 {[%clk 0:03:00.4]} 3. Nf3 {[%clk 0:03:00.1]} 3... b6 {[%clk 0:03:00.6]} 4. a3
{[%clk 0:03:01.3]} 4... Ba6 {[%clk 0:03:00.5]} 5. Qc2 {[%clk 0:03:02.3]} 5...
Bb7 {[%clk 0:03:02.2]} 6. Nc3 {[%clk 0:03:03.5]} 6... c5 {[%clk 0:03:02.7]} 7.
e4 {[%clk 0:03:04.6]} 7... cxd4 {[%clk 0:03:04.2]} 8. Nxd4 {[%clk 0:03:06.5]}
8... Bc5 {[%clk 0:03:05.8]} 9. Nb3 {[%clk 0:03:07.5]} 9... Nc6 {[%clk
0:03:07.5]} 10. Bg5 {[%clk 0:03:08.8]} 10... Nd4 {[%clk 0:03:06.4]} 11. Nxd4
{[%clk 0:03:09.5]} 11... Bxd4 {[%clk 0:03:07.8]} 12. Rd1 {[%clk 0:03:02.6]}
12... Bxc3+ {[%clk 0:03:04.9]} 13. Qxc3 {[%clk 0:03:03.7]} 13... Bxe4 {[%clk
0:03:01.3]} 14. f3 {[%clk 0:03:02.9]} 14... Bc6 {[%clk 0:03:02.1]} 15. h4 {[%clk
0:02:29.6]} 15... h6 {[%clk 0:03:01.5]} 16. Bf4 {[%clk 0:02:30.3]} 16... O-O
{[%clk 0:02:52.3]} 17. Bd6 {[%clk 0:02:31.5]} 17... Re8 {[%clk 0:02:53]} 18. Be2
{[%clk 0:02:32.1]} 18... e5 {[%clk 0:02:36]} 19. O-O {[%clk 0:02:31.9]} 19... e4
{[%clk 0:02:33.3]} 20. f4 {[%clk 0:02:14.3]} 20... h5 {[%clk 0:02:23.2]} 21. Be5
{[%clk 0:02:10.6]} 21... Ng4 {[%clk 0:01:51.2]} 22. Bxg4 {[%clk 0:01:42.9]}
22... hxg4 {[%clk 0:01:52.3]} 23. Bxg7 {[%clk 0:01:44.2]} 23... Qxh4 {[%clk
0:01:54]} 24. Bf6 {[%clk 0:01:44.5]} 24... Qh5 {[%clk 0:01:49.2]} 25. Qe3 {[%clk
0:01:16.3]} 25... Re6 {[%clk 0:01:46.1]} 26. Bc3 {[%clk 0:01:06.9]} 26... Rg6
{[%clk 0:01:44.7]} 27. f5 {[%clk 0:01:02]} 27... g3 {[%clk 0:01:44.9]} 28. Rfe1
{[%clk 0:00:41.1]} 28... Rg5 {[%clk 0:01:35.2]} 29. Rd6 {[%clk 0:00:25.9]} 29...
Qh2+ {[%clk 0:01:13.7]} 30. Kf1 {[%clk 0:00:26.7]} 30... Rxf5+ {[%clk
0:01:10.8]} 31. Ke2 {[%clk 0:00:27.7]} 31... Qxg2+ {[%clk 0:01:12.5]} 32. Kd1
{[%clk 0:00:29]} 32... Qf3+ {[%clk 0:01:10.2]} 33. Qxf3 {[%clk 0:00:22]} 33...
exf3 {[%clk 0:01:08.6]} 34. Rh6 {[%clk 0:00:21.2]} 34... f6 {[%clk 0:01:07.1]}
35. Rg6+ {[%clk 0:00:22.5]} 35... Kf7 {[%clk 0:01:06.1]} 36. Rxg3 {[%clk
0:00:24.4]} 36... f2 {[%clk 0:00:43.9]} 37. Rf1 {[%clk 0:00:24.8]} 37... Re8
{[%clk 0:00:39.4]} 38. Kd2 {[%clk 0:00:18.1]} 38... Re4 {[%clk 0:00:32.1]} 39.
b3 {[%clk 0:00:19.5]} 39... Ref4 {[%clk 0:00:18.4]} 40. Ke2 {[%clk 0:00:16.6]}
40... Rf3 {[%clk 0:00:11.6]} 41. Rxf3 {[%clk 0:00:15.4]} 41... Rxf3 {[%clk
0:00:13.3]} 42. Bd4 {[%clk 0:00:15.1]} 42... Rxb3 {[%clk 0:00:11.1]} 43. Rxf2
{[%clk 0:00:16.4]} 43... Rxa3 {[%clk 0:00:12.8]} 44. Rxf6+ {[%clk 0:00:17.2]}
44... Ke7 {[%clk 0:00:14.4]} 45. Rh6 {[%clk 0:00:18.5]} 45... Ra4 {[%clk
0:00:15.2]} 46. Kd3 {[%clk 0:00:19.6]} 46... Ra3+ {[%clk 0:00:15.5]} 47. Kc2
{[%clk 0:00:20.6]} 47... Kd8 {[%clk 0:00:16.3]} 48. Be5 {[%clk 0:00:21.5]} 48...
Kc8 {[%clk 0:00:17.5]} 49. Bd6 {[%clk 0:00:21.9]} 49... Rf3 {[%clk 0:00:16.7]}
50. c5 {[%clk 0:00:22.5]} 50... Kb7 {[%clk 0:00:16.3]} 51. cxb6 {[%clk
0:00:23.1]} 51... axb6 {[%clk 0:00:18]} 52. Rh8 {[%clk 0:00:24.4]} 52... Ka6
{[%clk 0:00:17.9]} 53. Rb8 {[%clk 0:00:25]} 53... Rf5 {[%clk 0:00:18.9]} 54. Bc7
{[%clk 0:00:25.2]} 54... Rb5 {[%clk 0:00:17.6]} 55. Kc3 {[%clk 0:00:25.4]} 55...
Ka7 {[%clk 0:00:18.1]} 56. Rd8 {[%clk 0:00:24.9]} 56... Rc5+ {[%clk 0:00:18.1]}
57. Kb4 {[%clk 0:00:25.8]} 57... Kb7 {[%clk 0:00:19.8]} 58. Bd6 {[%clk
0:00:26.7]} 58... Rb5+ {[%clk 0:00:21.5]} 59. Kc4 {[%clk 0:00:26.8]} 59... Rf5
{[%clk 0:00:23.2]} 60. Rb8+ {[%clk 0:00:27.1]} 60... Ka7 {[%clk 0:00:24.9]} 61.
Rh8 {[%clk 0:00:27.1]} 61... b5+ {[%clk 0:00:25.9]} 62. Kb4 {[%clk 0:00:28.4]}
62... Rd5 {[%clk 0:00:27.5]} 63. Bc5+ {[%clk 0:00:27.9]} 63... Kb7 {[%clk
0:00:29.1]} 64. Rf8 {[%clk 0:00:21.9]} 64... Rd3 {[%clk 0:00:29.8]} 65. Rf6
{[%clk 0:00:20.9]} 65... Kc7 {[%clk 0:00:29.4]} 66. Ka5 {[%clk 0:00:20]} 66...
d6 {[%clk 0:00:27.1]} 67. Bb4 {[%clk 0:00:21.2]} 67... Bd7 {[%clk 0:00:25.1]}
68. Rf1 {[%clk 0:00:18.6]} 68... Rd4 {[%clk 0:00:18.4]} 69. Rc1+ {[%clk
0:00:19.1]} 69... Rc4 {[%clk 0:00:19.9]} 70. Rd1 {[%clk 0:00:20]} 70... Rc6
{[%clk 0:00:21.6]} 71. Rd5 {[%clk 0:00:17]} 71... Rb6 {[%clk 0:00:21.5]} 72. Be1
{[%clk 0:00:16.5]} 72... Kb7 {[%clk 0:00:22.4]} 73. Bf2 {[%clk 0:00:16.7]} 73...
Ra6+ {[%clk 0:00:23.5]} 74. Kb4 {[%clk 0:00:18.3]} 74... Ra4+ {[%clk 0:00:25.2]}
75. Kc3 {[%clk 0:00:18.8]} 75... Kc6 {[%clk 0:00:26.9]} 76. Rd1 {[%clk
0:00:19.6]} 76... Rc4+ {[%clk 0:00:27.9]} 77. Kb2 {[%clk 0:00:20.9]} 77... Bf5
{[%clk 0:00:29.1]} 78. Bg3 {[%clk 0:00:21.8]} 78... d5 {[%clk 0:00:29.5]} 79.
Rf1 {[%clk 0:00:23.2]} 79... Be4 {[%clk 0:00:30.8]} 80. Rf6+ {[%clk 0:00:24.2]}
80... Kc5 {[%clk 0:00:32.5]} 81. Bd6+ {[%clk 0:00:24.6]} 81... Kd4 {[%clk
0:00:34.2]} 82. Rf2 {[%clk 0:00:25.5]} 82... b4 {[%clk 0:00:32.5]} 83. Kb3
{[%clk 0:00:26.9]} 83... Ke3 {[%clk 0:00:30.7]} 84. Rh2 {[%clk 0:00:28.1]} 84...
Bc2+ {[%clk 0:00:28.5]} 85. Rxc2 {[%clk 0:00:28.5]} 85... Rxc2 {[%clk
0:00:25.3]} 86. Kxc2 {[%clk 0:00:30.4]} 86... d4 {[%clk 0:00:26]} 87. Bxb4
{[%clk 0:00:31.3]} 87... d3+ {[%clk 0:00:27.2]} 1/2-1/2

[Event "*** Monthly 3|2 Blitz Masters"]
[Site "Chess.com"]
[Date "2014.11.25"]
[Round "7"]
[White "stepanosinovsky"]
[Black "oggy1984"]
[Result "1/2-1/2"]
[WhiteElo "2257"]
[BlackElo "2198"]
[TimeControl "180+2"]
[EndTime "12:36:01 PST"]
[Termination "Game drawn by 50-move rule"]

1. e4 {[%clk 0:03:00]} 1... e5 {[%clk 0:02:57.2]} 2. Nf3 {[%clk 0:03:01.5]} 2...
Nc6 {[%clk 0:02:56.1]} 3. Bb5 {[%clk 0:03:02.9]} 3... a6 {[%clk 0:02:56.6]} 4.
Ba4 {[%clk 0:03:04.4]} 4... Nf6 {[%clk 0:02:57.7]} 5. O-O {[%clk 0:03:06]} 5...
Be7 {[%clk 0:02:58.7]} 6. Re1 {[%clk 0:03:07.7]} 6... b5 {[%clk 0:02:58.2]} 7.
Bb3 {[%clk 0:03:09.1]} 7... d6 {[%clk 0:03:00.1]} 8. Nc3 {[%clk 0:03:07.1]} 8...
Na5 {[%clk 0:02:59.6]} 9. Nd5 {[%clk 0:03:04.7]} 9... Nxd5 {[%clk 0:02:56.9]}
10. exd5 {[%clk 0:03:05.7]} 10... O-O {[%clk 0:02:53.6]} 11. d4 {[%clk
0:03:05.4]} 11... Nxb3 {[%clk 0:02:46.7]} 12. axb3 {[%clk 0:03:03.3]} 12... exd4
{[%clk 0:02:42.9]} 13. Nxd4 {[%clk 0:03:03.5]} 13... Bd7 {[%clk 0:02:31.7]} 14.
c3 {[%clk 0:02:43.7]} 14... Bf6 {[%clk 0:02:32.1]} 15. Nc6 {[%clk 0:02:35.8]}
15... Bxc6 {[%clk 0:02:31.8]} 16. dxc6 {[%clk 0:02:37.7]} 16... Re8 {[%clk
0:02:32.8]} 17. Rxe8+ {[%clk 0:02:34.8]} 17... Qxe8 {[%clk 0:02:33.4]} 18. Be3
{[%clk 0:02:33.8]} 18... Qxc6 {[%clk 0:02:30.8]} 19. b4 {[%clk 0:02:27.1]} 19...
Re8 {[%clk 0:02:27.4]} 20. Qf3 {[%clk 0:02:15.3]} 20... Qxf3 {[%clk 0:02:16.1]}
21. gxf3 {[%clk 0:02:17.2]} 21... Ra8 {[%clk 0:02:16.3]} 22. Kf1 {[%clk
0:02:18]} 22... Bd8 {[%clk 0:02:12.5]} 23. b3 {[%clk 0:01:58.1]} 23... c6 {[%clk
0:02:10.3]} 24. c4 {[%clk 0:01:57.7]} 24... a5 {[%clk 0:02:10.9]} 25. bxa5
{[%clk 0:01:46.4]} 25... Rxa5 {[%clk 0:02:11.5]} 26. Rd1 {[%clk 0:01:46.4]}
26... Bc7 {[%clk 0:02:11]} 27. Bf4 {[%clk 0:01:44.7]} 27... bxc4 {[%clk
0:01:58.5]} 28. Bxd6 {[%clk 0:01:34.8]} 28... Bxd6 {[%clk 0:01:06.9]} 29. Rxd6
{[%clk 0:01:35.4]} 29... Kf8 {[%clk 0:01:04.2]} 30. Rxc6 {[%clk 0:01:36.2]}
30... cxb3 {[%clk 0:01:03.9]} 31. Rb6 {[%clk 0:01:36]} 31... Ra1+ {[%clk
0:01:03.3]} 32. Kg2 {[%clk 0:01:37.1]} 32... Rb1 {[%clk 0:01:02.3]} 33. Rb7
{[%clk 0:01:38.3]} 33... g5 {[%clk 0:00:59.2]} 34. Kg3 {[%clk 0:01:27.9]} 34...
b2 {[%clk 0:00:58.3]} 35. Kg2 {[%clk 0:01:28.9]} 35... Kg7 {[%clk 0:00:57]} 36.
Rb6 {[%clk 0:01:28.3]} 36... h5 {[%clk 0:00:57.3]} 37. h3 {[%clk 0:01:29.4]}
37... f5 {[%clk 0:00:54.9]} 38. Rb7+ {[%clk 0:01:28.9]} 38... Kf6 {[%clk
0:00:55.4]} 39. Rb5 {[%clk 0:01:29.8]} 39... Ke6 {[%clk 0:00:56]} 40. Rb6+
{[%clk 0:01:30.3]} 40... Kd5 {[%clk 0:00:56.7]} 41. Rb5+ {[%clk 0:01:31.5]}
41... Kc4 {[%clk 0:00:57.7]} 42. Rb8 {[%clk 0:01:33.2]} 42... Kc5 {[%clk
0:00:50]} 43. Rc8+ {[%clk 0:01:33.7]} 43... Kd6 {[%clk 0:00:50.9]} 44. Rd8+
{[%clk 0:01:34.9]} 44... Kc7 {[%clk 0:00:51]} 45. Rd2 {[%clk 0:01:15.3]} 45...
Rg1+ {[%clk 0:00:50.1]} 46. Kxg1 {[%clk 0:01:15.2]} 46... b1=Q+ {[%clk
0:00:50.7]} 47. Kg2 {[%clk 0:01:16.4]} 47... Qb4 {[%clk 0:00:44.9]} 48. Rd5
{[%clk 0:01:13.2]} 48... Qf4 {[%clk 0:00:44.6]} 49. Rd3 {[%clk 0:00:58.8]} 49...
g4 {[%clk 0:00:45.5]} 50. hxg4 {[%clk 0:00:51.6]} 50... fxg4 {[%clk 0:00:43.8]}
51. Re3 {[%clk 0:00:51.4]} 51... h4 {[%clk 0:00:40.7]} 52. fxg4 {[%clk 0:00:45]}
52... Qxg4+ {[%clk 0:00:41.4]} 53. Kh2 {[%clk 0:00:46]} 53... Kd6 {[%clk
0:00:41.6]} 54. Rd3+ {[%clk 0:00:44.8]} 54... Ke6 {[%clk 0:00:41.2]} 55. Re3+
{[%clk 0:00:45.8]} 55... Kf5 {[%clk 0:00:41.6]} 56. Rh3 {[%clk 0:00:43.7]} 56...
Kg5 {[%clk 0:00:38.1]} 57. Re3 {[%clk 0:00:44.2]} 57... Qf4+ {[%clk 0:00:37.4]}
58. Kg2 {[%clk 0:00:44.7]} 58... Kg4 {[%clk 0:00:36.9]} 59. Ra3 {[%clk
0:00:27.9]} 59... Qc4 {[%clk 0:00:34.8]} 60. Re3 {[%clk 0:00:27.9]} 60... Qc6+
{[%clk 0:00:35]} 61. Kh2 {[%clk 0:00:28.6]} 61... Qd5 {[%clk 0:00:32.8]} 62. Rh3
{[%clk 0:00:15.6]} 62... Qd2 {[%clk 0:00:28.5]} 63. Kg2 {[%clk 0:00:16.6]} 63...
Qd5+ {[%clk 0:00:25.8]} 64. Kh2 {[%clk 0:00:17.6]} 64... Qc6 {[%clk 0:00:25.9]}
65. Re3 {[%clk 0:00:17.9]} 65... Qd5 {[%clk 0:00:26]} 66. Rh3 {[%clk 0:00:18.5]}
66... Qe5+ {[%clk 0:00:26.7]} 67. Kg2 {[%clk 0:00:19.2]} 67... Qf4 {[%clk
0:00:24.7]} 68. Re3 {[%clk 0:00:19.6]} 68... Qf5 {[%clk 0:00:22.6]} 69. Rh3
{[%clk 0:00:20.2]} 69... Qg5 {[%clk 0:00:21.8]} 70. Re3 {[%clk 0:00:19.9]} 70...
Kf4+ {[%clk 0:00:22.7]} 71. Kh2 {[%clk 0:00:21]} 71... Qg8 {[%clk 0:00:21]} 72.
Rh3 {[%clk 0:00:21.8]} 72... Qd8 {[%clk 0:00:21.7]} 73. Re3 {[%clk 0:00:22.5]}
73... Qd6 {[%clk 0:00:20.5]} 74. Kg2 {[%clk 0:00:22.7]} 74... Kg4 {[%clk
0:00:20.7]} 75. Rh3 {[%clk 0:00:22.6]} 75... Qc6+ {[%clk 0:00:21.9]} 76. Kh2
{[%clk 0:00:23.6]} 76... Qc2 {[%clk 0:00:22.9]} 77. Kg2 {[%clk 0:00:24.3]} 77...
Qc6+ {[%clk 0:00:21.6]} 78. Kh2 {[%clk 0:00:25.4]} 78... Qf6 {[%clk 0:00:22.7]}
79. Kg2 {[%clk 0:00:26.2]} 79... Qf7 {[%clk 0:00:20.6]} 80. Re3 {[%clk
0:00:26.2]} 80... Qh7 {[%clk 0:00:20.2]} 81. Rh3 {[%clk 0:00:25.8]} 81... Qh8
{[%clk 0:00:20.7]} 82. Re3 {[%clk 0:00:26.1]} 82... h3+ {[%clk 0:00:20.7]} 83.
Kh2 {[%clk 0:00:25.5]} 83... Qf6 {[%clk 0:00:19.1]} 84. Rg3+ {[%clk 0:00:25.5]}
84... Kh5 {[%clk 0:00:19.6]} 85. Rxh3+ {[%clk 0:00:26.5]} 85... Kg6 {[%clk
0:00:20.8]} 86. Rg3+ {[%clk 0:00:27.7]} 86... Kf7 {[%clk 0:00:21.1]} 87. Kg2
{[%clk 0:00:29.3]} 87... Qc6+ {[%clk 0:00:22]} 88. Kh2 {[%clk 0:00:29.4]} 88...
Kf6 {[%clk 0:00:23.2]} 89. Re3 {[%clk 0:00:29.4]} 89... Kf5 {[%clk 0:00:24.3]}
90. Rg3 {[%clk 0:00:30]} 90... Kf4 {[%clk 0:00:25.1]} 91. Re3 {[%clk 0:00:30.8]}
91... Qd7 {[%clk 0:00:25.1]} 92. Rg3 {[%clk 0:00:31.1]} 92... Qd5 {[%clk
0:00:23.9]} 93. Re3 {[%clk 0:00:31.7]} 93... Kg4 {[%clk 0:00:25]} 94. Rg3+
{[%clk 0:00:32.5]} 94... Kh4 {[%clk 0:00:25.6]} 95. Rh3+ {[%clk 0:00:33.7]}
95... Kg4 {[%clk 0:00:26.9]} 96. Rg3+ {[%clk 0:00:35.6]} 96... Kf4 {[%clk
0:00:28.5]} 97. Re3 {[%clk 0:00:37.2]} 97... Qd2 {[%clk 0:00:29.3]} 98. Kg2
{[%clk 0:00:37.7]} 98... Qd1 {[%clk 0:00:30.4]} 99. Rg3 {[%clk 0:00:38.6]} 99...
Qe2 {[%clk 0:00:30]} 100. Re3 {[%clk 0:00:39.3]} 100... Qg4+ {[%clk 0:00:30.5]}
101. Rg3 {[%clk 0:00:40.2]} 101... Qh5 {[%clk 0:00:30.6]} 102. Re3 {[%clk
0:00:40.4]} 102... Qd5+ {[%clk 0:00:30.4]} 103. Kh2 {[%clk 0:00:41.2]} 103...
Qd6 {[%clk 0:00:30.9]} 104. Kg2 {[%clk 0:00:41.8]} 104... Qc7 {[%clk 0:00:31.1]}
105. Rf3+ {[%clk 0:00:42.4]} 105... Kg4 {[%clk 0:00:29.4]} 106. Rg3+ {[%clk
0:00:44.3]} 106... Kf5 {[%clk 0:00:30.3]} 107. Rf3+ {[%clk 0:00:45.4]} 107...
Ke4 {[%clk 0:00:31.4]} 108. Rg3 {[%clk 0:00:47.3]} 108... Qc6 {[%clk 0:00:31.6]}
109. Kh2 {[%clk 0:00:48]} 109... Kf4 {[%clk 0:00:31.8]} 110. Re3 {[%clk
0:00:48.3]} 110... Qg6 {[%clk 0:00:30.8]} 111. Rg3 {[%clk 0:00:49.1]} 111... Qc2
{[%clk 0:00:30.2]} 112. Kg2 {[%clk 0:00:50]} 112... Qd1 {[%clk 0:00:31.4]} 113.
Re3 {[%clk 0:00:50.7]} 113... Kg4 {[%clk 0:00:26.9]} 114. Rg3+ {[%clk
0:00:51.5]} 114... Kf5 {[%clk 0:00:27]} 115. Rf3+ {[%clk 0:00:52.1]} 115... Ke4
{[%clk 0:00:27.3]} 116. Re3+ {[%clk 0:00:53.7]} 116... Kf4 {[%clk 0:00:28.6]}
117. Rg3 {[%clk 0:00:54.7]} 117... Qe2 {[%clk 0:00:29.2]} 118. Re3 {[%clk
0:00:55.7]} 118... Qg4+ {[%clk 0:00:29.4]} 119. Rg3 {[%clk 0:00:56.8]} 119...
Qd7 {[%clk 0:00:30.1]} 120. Re3 {[%clk 0:00:57.1]} 120... Qc6+ {[%clk
0:00:30.7]} 121. Kh2 {[%clk 0:00:57.5]} 121... Qd5 {[%clk 0:00:24.3]} 122. Rg3
{[%clk 0:00:57.4]} 122... Qd1 {[%clk 0:00:19.2]} 123. Kg2 {[%clk 0:00:57.5]}
123... Qd5+ {[%clk 0:00:15.4]} 124. Kh2 {[%clk 0:00:58.1]} 124... Qh5+ {[%clk
0:00:15.9]} 125. Kg2 {[%clk 0:00:59.1]} 125... Qe2 {[%clk 0:00:16.7]} 126. Re3
{[%clk 0:00:59.1]} 126... Qd1 {[%clk 0:00:17.3]} 127. Rg3 {[%clk 0:00:59.7]}
127... Qd5+ {[%clk 0:00:16.4]} 128. Kh2 {[%clk 0:01:00.6]} 128... Qh5+ {[%clk
0:00:14.6]} 129. Kg2 {[%clk 0:01:01.5]} 129... Qb5 {[%clk 0:00:15.3]} 130. Rf3+
{[%clk 0:01:01.8]} 130... Ke5 {[%clk 0:00:15.2]} 131. Re3+ {[%clk 0:01:03.3]}
131... Kf6 {[%clk 0:00:15.5]} 132. Rf3+ {[%clk 0:01:04.3]} 132... Ke5 {[%clk
0:00:16.1]} 133. Rg3 {[%clk 0:01:06.2]} 133... Qb7+ {[%clk 0:00:15.4]} 134. Kh2
{[%clk 0:01:07.2]} 134... Qa8 {[%clk 0:00:16.4]} 135. Re3+ {[%clk 0:01:07.7]}
135... Kf4 {[%clk 0:00:17.3]} 136. Rg3 {[%clk 0:01:09.6]} 136... Qc6 {[%clk
0:00:16.3]} 137. Re3 {[%clk 0:01:09.8]} 137... Qc2 {[%clk 0:00:15.8]} 138. Kg2
{[%clk 0:01:10.4]} 138... Qd1 {[%clk 0:00:14.6]} 139. Rg3 {[%clk 0:01:11.3]}
139... Qh5 {[%clk 0:00:10.7]} 140. Re3 {[%clk 0:01:11.6]} 140... Qg6+ {[%clk
0:00:09.1]} 141. Rg3 {[%clk 0:01:11.6]} 141... Qc6+ {[%clk 0:00:09.8]} 142. Kh2
{[%clk 0:01:12.3]} 142... Ke4 {[%clk 0:00:09.6]} 143. Re3+ {[%clk 0:01:12.2]}
143... Kd4 {[%clk 0:00:10.5]} 144. Rg3 {[%clk 0:01:12.4]} 144... Qc2 {[%clk
0:00:10.5]} 145. Kg2 {[%clk 0:01:13]} 145... Qd1 {[%clk 0:00:11.2]} 146. Re3
{[%clk 0:01:13.3]} 146... Qg4+ {[%clk 0:00:10.8]} 147. Rg3 {[%clk 0:01:14.1]}
147... Qh4 {[%clk 0:00:11.9]} 148. Rh3 {[%clk 0:01:14.5]} 148... Qe4+ {[%clk
0:00:11.1]} 149. Kh2 {[%clk 0:01:15.3]} 149... Qf4+ {[%clk 0:00:09.1]} 150. Kg2
{[%clk 0:01:15.8]} 150... Qe4+ {[%clk 0:00:10.3]} 151. Kh2 {[%clk 0:01:16.4]}
151... Qb1 {[%clk 0:00:11.3]} 152. Kg2 {[%clk 0:01:16.8]} 152... Qb7+ {[%clk
0:00:11.4]} 153. Kh2 {[%clk 0:01:17.6]} 153... Ke4 {[%clk 0:00:12]} 154. Kg2
{[%clk 0:01:17.6]} 154... Kf4+ {[%clk 0:00:12.5]} 155. Kh2 {[%clk 0:01:19.2]}
155... Qc6 {[%clk 0:00:13]} 156. Rg3 {[%clk 0:01:19.9]} 156... Qc1 {[%clk
0:00:12.4]} 157. Kg2 {[%clk 0:01:21]} 157... Qc6+ {[%clk 0:00:11.5]} 158. Kh2
{[%clk 0:01:21.7]} 158... Qd5 {[%clk 0:00:12.8]} 159. Re3 {[%clk 0:01:22.2]}
159... Qh5+ {[%clk 0:00:13.4]} 160. Kg2 {[%clk 0:01:22.8]} 160... Qg6+ {[%clk
0:00:14.3]} 161. Rg3 {[%clk 0:01:24.3]} 161... Qe4+ {[%clk 0:00:14.3]} 162. Kh2
{[%clk 0:01:24.8]} 162... Qb1 {[%clk 0:00:12.9]} 163. Kg2 {[%clk 0:01:25.6]}
163... Kf5 {[%clk 0:00:14]} 164. Re3 {[%clk 0:01:26.3]} 164... Qb7+ {[%clk
0:00:14]} 165. Kh2 {[%clk 0:01:26.9]} 165... Qh7+ {[%clk 0:00:14.6]} 166. Kg2
{[%clk 0:01:27.6]} 166... Qg6+ {[%clk 0:00:15.6]} 167. Rg3 {[%clk 0:01:28.6]}
167... Qc6+ {[%clk 0:00:16.3]} 168. Kh2 {[%clk 0:01:29.1]} 168... Qc2 {[%clk
0:00:16.5]} 169. Kg2 {[%clk 0:01:29.8]} 169... Qe2 {[%clk 0:00:16.6]} 170. Re3
{[%clk 0:01:31]} 170... Qc2 {[%clk 0:00:17.2]} 171. Rg3 {[%clk 0:01:32.5]}
171... Kf4 {[%clk 0:00:17.7]} 172. Re3 {[%clk 0:01:33]} 172... Qc6+ {[%clk
0:00:15.7]} 173. Kh2 {[%clk 0:01:34.1]} 173... Kg4 {[%clk 0:00:14.2]} 174. Rg3+
{[%clk 0:01:34.8]} 174... Kf4 {[%clk 0:00:15.4]} 175. Re3 {[%clk 0:01:35.7]}
175... Qc5 {[%clk 0:00:16.4]} 176. Kg2 {[%clk 0:01:35.8]} 176... Qg5+ {[%clk
0:00:16.6]} 177. Rg3 {[%clk 0:01:36.3]} 1/2-1/2